bitfinex-derivatives/quotes_BTCF0:USTF0_20250427
["timestamp","ask_amount","ask_price","bid_price","bid_amount"]
[1745780778554,0.7426002,94336.0,94335.0,0.18416]
[1745780778853,0.7426002,94336.0,94335.0,0.2013833]
[1745780779058,0.7436002,94336.0,94335.0,0.2013833]
[1745780779954,0.7536002,94336.0,94335.0,0.2013833]
[1745780780554,0.7536002,94336.0,94335.0,0.20940111]
[1745780782254,0.7526002,94336.0,94335.0,0.20940111]
[1745780782559,0.7536002,94336.0,94335.0,0.20940111]
[1745780787667,0.7536002,94336.0,94335.0,0.42134361]
[1745780792255,1.1144002,94336.0,94335.0,0.42134361]
[1745780792449,1.1134002,94336.0,94335.0,0.42134361]
[1745780792649,1.1144002,94336.0,94335.0,0.42134361]
[1745780793361,0.7536002,94336.0,94335.0,0.42134361]
[1745780793671,1.1144002,94336.0,94335.0,0.42134361]
[1745780795863,1.2423002,94336.0,94335.0,0.42134361]
[1745780796661,1.2423002,94336.0,94335.0,0.55004361]
[1745780800270,1.22957949,94336.0,94335.0,0.55004361]
[1745780800469,0.69991949,94336.0,94335.0,0.55004361]
[1745780800669,0.63521949,94336.0,94335.0,0.55004361]
[1745780801469,0.63421949,94336.0,94335.0,0.55004361]
[1745780801962,0.63521949,94336.0,94335.0,0.55004361]
[1745780803669,0.63421949,94336.0,94335.0,0.55004361]
[1745780803964,0.63521949,94336.0,94335.0,0.55004361]
[1745780804852,0.63421949,94336.0,94335.0,0.55004361]
[1745780805057,0.63521949,94336.0,94335.0,0.55004361]
[1745780807560,0.63421949,94336.0,94335.0,0.55004361]
[1745780807866,0.63521949,94336.0,94335.0,0.55004361]
[1745780808460,0.62521949,94336.0,94335.0,0.55004361]
[1745780809671,0.62421949,94336.0,94335.0,0.55004361]
[1745780809875,0.62521949,94336.0,94335.0,0.55004361]
[1745780810174,0.61249861,94336.0,94335.0,0.55004361]
[1745780810371,0.61149861,94336.0,94335.0,0.55004361]
[1745780810575,0.61249861,94336.0,94335.0,0.55004361]
[1745780810880,0.61149861,94336.0,94335.0,0.55004361]
[1745780811081,0.61249861,94336.0,94335.0,0.55004361]
[1745780811274,0.61249861,94336.0,94335.0,0.42134361]
[1745780815872,0.61249861,94336.0,94335.0,0.48164361]
[1745780818574,0.25169861,94336.0,94335.0,0.48164361]
[1745780818773,0.61249861,94336.0,94335.0,0.48164361]
[1745780820177,0.61149861,94336.0,94335.0,0.48164361]
[1745780820386,0.61249861,94336.0,94335.0,0.42134361]
[1745780828984,1.14215861,94336.0,94335.0,0.42134361]
[1745780848992,0.61249861,94336.0,94335.0,0.42134361]
[1745780849293,1.14215861,94336.0,94335.0,0.42134361]
[1745780860099,0.61249861,94336.0,94335.0,0.42134361]
[1745780860998,1.14215861,94336.0,94335.0,0.42134361]
[1745780864500,1.15215861,94336.0,94335.0,0.42134361]
[1745780868405,1.14215861,94336.0,94335.0,0.42134361]
[1745780869393,1.14215861,94336.0,94335.0,0.20940111]
[1745780871703,1.15215861,94336.0,94335.0,0.20940111]
[1745780871899,1.15215861,94336.0,94335.0,0.14524111]
[1745780872299,1.15215861,94336.0,94335.0,0.02524111]
[1745780872502,0.2119515,94331.0,94330.0,0.372834]
[1745780872704,0.8016115,94331.0,94330.0,0.372834]
[1745780873400,0.9282115,94331.0,94330.0,0.372834]
[1745780873599,0.9282115,94331.0,94330.0,0.38093532]
[1745780875001,0.9292115,94331.0,94330.0,0.38093532]
[1745780875408,0.9292115,94331.0,94330.0,0.3956751]
[1745780875803,0.9302115,94331.0,94330.0,0.3956751]
[1745780875999,0.9302115,94331.0,94330.0,0.183722]
[1745780876909,0.9302115,94331.0,94330.0,0.0228411]
[1745780877094,0.2119537,94330.0,94329.0,0.1608809]
[1745780877293,0.7516137,94330.0,94329.0,0.1608809]
[1745780877500,0.8761137,94330.0,94329.0,0.1608809]
[1745780878104,0.8761137,94330.0,94329.0,0.16883037]
[1745780878303,0.8761137,94330.0,94329.0,0.39538445]
[1745780878701,0.8771137,94330.0,94329.0,0.39538445]
[1745780879097,0.8781137,94330.0,94329.0,0.39538445]
[1745780879802,0.8771137,94330.0,94329.0,0.39538445]
[1745780880005,0.8781137,94330.0,94329.0,0.39538445]
[1745780880402,0.8791137,94330.0,94329.0,0.39538445]
[1745780881907,0.8771137,94330.0,94329.0,0.39538445]
[1745780882101,0.8781137,94330.0,94329.0,0.39538445]
[1745780882900,0.8771137,94330.0,94329.0,0.39538445]
[1745780883105,0.8781137,94330.0,94329.0,0.39538445]
[1745780884601,0.8781137,94330.0,94329.0,0.18342845]
[1745780885417,0.86539241,94330.0,94329.0,0.18342845]
[1745780886501,0.86439241,94330.0,94329.0,0.18342845]
[1745780886704,0.86539241,94330.0,94329.0,0.18342845]
[1745780887306,0.86439241,94330.0,94329.0,0.18342845]
[1745780887512,0.86539241,94330.0,94329.0,0.18342845]
[1745780887905,0.86539241,94330.0,94329.0,0.39538445]
[1745780888106,0.86439241,94330.0,94329.0,0.39538445]
[1745780888415,0.86539241,94330.0,94329.0,0.39538445]
[1745780889717,0.86439241,94330.0,94329.0,0.39538445]
[1745780889918,0.86539241,94330.0,94329.0,0.39538445]
[1745780890615,0.86439241,94330.0,94329.0,0.39538445]
[1745780890803,0.86539241,94330.0,94329.0,0.39538445]
[1745780891221,0.80229241,94330.0,94329.0,0.51538445]
[1745780891516,0.80229241,94330.0,94329.0,0.63988445]
[1745780892219,0.80129241,94330.0,94329.0,0.63988445]
[1745780893722,0.80029241,94330.0,94329.0,0.63988445]
[1745780895617,0.80029241,94330.0,94329.0,0.47900355]
[1745780906613,0.80029241,94330.0,94329.0,0.14254755]
[1745780907326,0.80029241,94330.0,94329.0,0.02254755]
[1745780907524,0.211956,94329.0,94328.0,0.06412]
[1745780907828,1.009816,94329.0,94328.0,0.07861448]
[1745780908027,1.074716,94329.0,94328.0,0.07861448]
[1745780908323,1.074716,94329.0,94328.0,0.08667374]
[1745780908828,1.075716,94329.0,94328.0,0.08667374]
[1745780909020,0.546056,94329.0,94328.0,0.08667374]
[1745780909228,1.075716,94329.0,94328.0,0.02255374]
[1745780909529,0.211965,94325.0,94324.0,0.211967]
[1745780909732,0.612765,94325.0,94324.0,0.211967]
[1745780910027,1.142425,94325.0,94324.0,0.211967]
[1745780910527,1.266625,94325.0,94324.0,0.211967]
[1745780910726,1.266625,94325.0,94324.0,0.22647293]
[1745780911129,1.266625,94325.0,94324.0,0.01450593]
[1745780911326,0.2649639,94324.0,94323.0,0.2119681]
[1745780911527,0.2949639,94324.0,94323.0,0.21997727]
[1745780911829,0.9527239,94324.0,94323.0,0.00800917]
[1745780912019,0.2119739,94321.0,94320.0,0.2119749]
[1745780912219,0.7516339,94321.0,94320.0,0.2119749]
[1745780912727,0.7516339,94321.0,94319.0,0.37383567]
[1745780912728,0.2119762,94320.0,94319.0,0.37383567]
[1745780912928,0.3400762,94320.0,94319.0,0.37383567]
[1745780913231,0.3400762,94320.0,94319.0,0.49383567]
[1745780913622,0.3400762,94320.0,94319.0,0.3319784]
[1745780913818,0.3400762,94320.0,94319.0,0.12]
[1745780914330,0.3400762,94320.0,94319.0,0.3319784]
[1745780914733,0.3400762,94320.0,94319.0,0.34592053]
[1745780915926,0.3400762,94320.0,94319.0,0.3537575]
[1745780917631,0.3400762,94320.0,94319.0,0.1417791]
[1745780917833,0.3400762,94320.0,94319.0,0.3537575]
[1745780926440,0.3500762,94320.0,94319.0,0.3537575]
[1745780926844,0.3510762,94320.0,94319.0,0.3537575]
[1745780927542,0.3520762,94320.0,94319.0,0.3537575]
[1745780929049,0.8817362,94320.0,94319.0,0.3537575]
[1745780929242,0.8817362,94320.0,94319.0,0.1417791]
[1745780929442,0.8817362,94320.0,94319.0,0.3537575]
[1745780929945,0.8807362,94320.0,94319.0,0.3537575]
[1745780930145,0.8807362,94320.0,94319.0,0.2337575]
[1745780930941,0.8797362,94320.0,94319.0,0.2337575]
[1745780931641,0.8807362,94320.0,94319.0,0.2337575]
[1745780931937,0.8817362,94320.0,94319.0,0.2337575]
[1745780934547,0.8807362,94320.0,94319.0,0.2337575]
[1745780934744,0.8817362,94320.0,94319.0,0.2337575]
[1745780937652,0.8807362,94320.0,94319.0,0.2337575]
[1745780938949,0.3510762,94320.0,94319.0,0.2337575]
[1745780939145,0.8807362,94320.0,94319.0,0.2337575]
[1745780939345,0.8797362,94320.0,94319.0,0.2337575]
[1745780939648,0.8807362,94320.0,94319.0,0.2337575]
[1745780941153,0.8817362,94320.0,94319.0,0.2337575]
[1745780941842,0.8807362,94320.0,94319.0,0.2337575]
[1745780942047,0.8817362,94320.0,94319.0,0.2337575]
[1745780942453,0.8817362,94320.0,94319.0,0.2945575]
[1745780944052,0.8807362,94320.0,94319.0,0.2945575]
[1745780944257,0.8797362,94320.0,94319.0,0.2945575]
[1745780944457,0.8807362,94320.0,94319.0,0.2945575]
[1745780945156,0.8817362,94320.0,94319.0,0.2945575]
[1745780959371,0.8817362,94320.0,94319.0,0.0825791]
[1745780959673,0.8817362,94320.0,94319.0,0.0217791]
[1745780959970,0.2119784,94319.0,94318.0,0.0615]
[1745780960156,0.2119807,94318.0,94317.0,0.16185727]
[1745780960358,1.0308407,94318.0,94317.0,0.1758711]
[1745780961370,1.0308407,94318.0,94317.0,0.18392052]
[1745780962073,1.0318407,94318.0,94317.0,0.18392052]
[1745780962973,1.0318407,94318.0,94317.0,0.02206325]
[1745780963164,0.2119852,94316.0,94315.0,0.06412]
[1745780963467,0.2419852,94316.0,94315.0,0.06412]
[1745780963668,0.2419852,94316.0,94315.0,0.07767411]
[1745780963870,0.3662852,94316.0,94315.0,0.07767411]
[1745780964257,0.3672852,94316.0,94315.0,0.07767411]
[1745780964462,0.3682852,94316.0,94315.0,0.07767411]
[1745780966078,0.3672852,94316.0,94315.0,0.07767411]
[1745780966374,0.3682852,94316.0,94315.0,0.07767411]
[1745780966769,0.3682852,94316.0,94315.0,0.08575454]
[1745780966973,0.8979452,94316.0,94315.0,0.08575454]
[1745780967175,0.8959452,94316.0,94315.0,0.08575454]
[1745780967368,0.8979452,94316.0,94315.0,0.08575454]
[1745780968379,0.8979452,94316.0,94315.0,0.02163454]
[1745780968580,0.2119919,94313.0,94312.0,0.16185727]
[1745780968781,1.2524519,94313.0,94312.0,0.16185727]
[1745780969271,1.2524519,94313.0,94312.0,0.28185727]
[1745780969471,1.3768519,94313.0,94312.0,0.28185727]
[1745780969868,1.3778519,94313.0,94312.0,0.28185727]
[1745780971082,1.3778519,94313.0,94312.0,0.28961082]
[1745780971379,1.3778519,94313.0,94312.0,0.12775355]
[1745780971878,1.3778519,94313.0,94312.0,0.14182841]
[1745780975281,1.3778519,94313.0,94312.0,0.26522841]
[1745780975982,1.2278519,94313.0,94312.0,0.26522841]
[1745780983778,1.2378519,94313.0,94312.0,0.14182841]
[1745780990392,0.8770519,94313.0,94312.0,0.14182841]
[1745780990598,1.2378519,94313.0,94312.0,0.14182841]
[1745781001802,1.2368519,94313.0,94312.0,0.14182841]
[1745781002802,1.2368519,94313.0,94312.0,0.14482841]
[1745781003002,1.2368519,94313.0,94312.0,0.14782841]
[1745781003406,1.2368519,94313.0,94312.0,0.14882841]
[1745781004301,1.2368519,94313.0,94312.0,0.14582841]
[1745781004608,1.2368519,94313.0,94312.0,0.14982841]
[1745781004797,1.2368519,94313.0,94312.0,0.21382841]
[1745781013421,0.8760519,94313.0,94312.0,0.21382841]
[1745781013624,1.2368519,94313.0,94312.0,0.21382841]
[1745781015425,0.8760519,94313.0,94312.0,0.21382841]
[1745781015723,1.2368519,94313.0,94312.0,0.21382841]
[1745781016821,1.2368519,94313.0,94312.0,0.14982841]
[1745781017417,0.2120122,94304.0,94303.0,0.2160057]
[1745781017719,1.2524722,94304.0,94303.0,0.2160057]
[1745781018517,1.3793722,94304.0,94303.0,0.2160057]
[1745781018915,1.3803722,94304.0,94303.0,0.2160057]
[1745781019318,1.3803722,94304.0,94303.0,0.22922655]
[1745781020119,1.3803722,94304.0,94303.0,0.24022193]
[1745781021323,1.3793722,94304.0,94303.0,0.24022193]
[1745781021521,1.3793722,94304.0,94303.0,0.24322193]
[1745781022218,1.3793722,94304.0,94303.0,0.02721623]
[1745781027522,0.2120369,94293.0,94292.0,0.06408]
[1745781027724,0.2220369,94293.0,94292.0,0.07185726]
[1745781028221,0.2220369,94293.0,94292.0,0.19185726]
[1745781028431,0.3481369,94293.0,94292.0,0.19185726]
[1745781028729,0.3501369,94293.0,94292.0,0.20539691]
[1745781029027,0.3511369,94293.0,94292.0,0.20539691]
[1745781031533,0.3411369,94293.0,94292.0,0.20539691]
[1745781035233,0.3511369,94293.0,94292.0,0.20539691]
[1745781036439,0.8807969,94293.0,94292.0,0.20539691]
[1745781037939,1.2415969,94293.0,94292.0,0.20539691]
[1745781046248,1.18691278,94293.0,94292.0,0.20539691]
[1745781060354,0.2120481,94288.0,94287.0,0.00159091]
[1745781060545,0.8917081,94288.0,94287.0,0.00159091]
[1745781060742,0.8917081,94288.0,94287.0,0.02497728]
[1745781060949,0.86684791,94288.0,94287.0,0.02497728]
[1745781061144,0.99074791,94288.0,94287.0,0.02497728]
[1745781061643,0.99074791,94288.0,94287.0,0.03298228]
[1745781061644,0.99374791,94288.0,94287.0,0.03298228]
[1745781061843,0.99374791,94288.0,94287.0,0.00159091]
[1745781062254,0.99374791,94288.0,94287.0,0.02528218]
[1745781062551,0.99374791,94288.0,94287.0,0.00159091]
[1745781062947,0.99274791,94288.0,94287.0,0.00159091]
[1745781063152,0.99474791,94288.0,94287.0,0.00159091]
[1745781064654,0.99474791,94288.0,94287.0,0.02569664]
[1745781065546,0.99474791,94288.0,94287.0,0.03356483]
[1745781071651,1.35554791,94288.0,94287.0,0.03356483]
[1745781075764,1.35554791,94288.0,94287.0,0.09676483]
[1745781080159,1.35538002,94288.0,94287.0,0.09676483]
[1745781094863,1.35538002,94288.0,94287.0,0.03356483]
[1745781110264,1.35538002,94288.0,94287.0,0.15356483]
[1745781111173,1.35538002,94288.0,94287.0,0.03356483]
[1745781113566,1.35338002,94288.0,94287.0,0.03356483]
[1745781113766,1.35338002,94288.0,94287.0,0.03556483]
[1745781114177,1.35138002,94288.0,94287.0,0.03556483]
[1745781114366,1.35138002,94288.0,94287.0,0.03456483]
[1745781114569,1.35138002,94288.0,94287.0,0.03656483]
[1745781117870,1.43244345,94288.0,94287.0,0.03656483]
[1745781122889,1.35138002,94288.0,94287.0,0.03656483]
[1745781123076,1.35138002,94288.0,94287.0,0.15656483]
[1745781124190,1.35138002,94288.0,94287.0,0.03656483]
[1745781125879,1.41348002,94288.0,94287.0,0.03656483]
[1745781126598,1.41348002,94288.0,94287.0,0.03456483]
[1745781126891,1.41348002,94288.0,94287.0,0.03656483]
[1745781129198,1.41348002,94288.0,94287.0,0.15656483]
[1745781131090,1.41348002,94288.0,94287.0,0.03656483]
[1745781131995,1.41348002,94288.0,94287.0,0.03497392]
[1745781132191,1.41348002,94288.0,94287.0,0.15497392]
[1745781133197,1.41348002,94288.0,94287.0,0.03497392]
[1745781133385,0.82172002,94288.0,94287.0,0.03497392]
[1745781133590,0.69782002,94288.0,94287.0,0.43062432]
[1745781133791,0.75702002,94288.0,94287.0,0.43062432]
[1745781134396,0.75702002,94288.0,94287.0,0.55062432]
[1745781134800,0.75802002,94288.0,94287.0,0.55062432]
[1745781134984,0.75802002,94288.0,94287.0,0.54962432]
[1745781135189,0.75902002,94288.0,94287.0,0.55162432]
[1745781136998,0.39822002,94288.0,94287.0,0.55162432]
[1745781138496,0.46282002,94288.0,94287.0,0.55162432]
[1745781139600,0.46282002,94288.0,94287.0,0.33957392]
[1745781140801,0.46282002,94288.0,94287.0,0.55162432]
[1745781151095,0.46282002,94288.0,94287.0,0.42832432]
[1745781155200,0.31282002,94288.0,94287.0,0.42832432]
[1745781159917,0.31282002,94288.0,94287.0,0.21627392]
[1745781167921,0.32282002,94288.0,94287.0,0.21627392]
[1745781169626,0.31282002,94288.0,94287.0,0.21627392]
[1745781170710,0.31282002,94288.0,94287.0,0.15597392]
[1745781172124,0.32282002,94288.0,94287.0,0.15597392]
[1745781177029,0.68362002,94288.0,94287.0,0.15597392]
[1745781183137,1.21328002,94288.0,94287.0,0.15597392]
[1745781187829,1.20328002,94288.0,94287.0,0.15597392]
[1745781189834,0.84248002,94288.0,94287.0,0.15597392]
[1745781190037,1.20328002,94288.0,94287.0,0.15597392]
[1745781192738,1.21328002,94288.0,94287.0,0.15597392]
[1745781193528,1.18842202,94288.0,94287.0,0.15597392]
[1745781195452,1.17842202,94288.0,94287.0,0.15597392]
[1745781200259,0.81762202,94288.0,94287.0,0.15597392]
[1745781208961,0.28796202,94288.0,94287.0,0.15597392]
[1745781209262,0.81762202,94288.0,94287.0,0.15597392]
[1745781209660,0.81762202,94288.0,94287.0,0.36802432]
[1745781213958,0.81762202,94288.0,94287.0,0.15597392]
[1745781214156,0.81762202,94288.0,94287.0,0.03597392]
[1745781215156,0.81762202,94288.0,94287.0,0.15597392]
[1745781218174,1.17842202,94288.0,94287.0,0.15597392]
[1745781221266,1.17842202,94288.0,94287.0,0.03597392]
[1745781223170,1.17842202,94288.0,94287.0,0.24802432]
[1745781223670,1.15356493,94288.0,94287.0,0.24802432]
[1745781224270,1.15356493,94288.0,94287.0,0.36802432]
[1745781224471,1.15356493,94288.0,94287.0,0.15597392]
[1745781225173,1.15356493,94288.0,94287.0,0.03597392]
[1745781226072,1.15356493,94288.0,94287.0,0.15597392]
[1745781227974,1.15356493,94288.0,94287.0,0.36802432]
[1745781228171,1.15356493,94288.0,94287.0,0.24802432]
[1745781238281,1.30356493,94288.0,94287.0,0.03597392]
[1745781247486,1.15356493,94288.0,94287.0,0.03597392]
[1745781253990,0.79276493,94288.0,94287.0,0.03597392]
[1745781254191,1.15356493,94288.0,94287.0,0.03597392]
[1745781254579,0.00795,94292.0,94287.0,0.14203392]
[1745781254791,0.4451,94309.0,94289.0,0.3608]
[1745781254990,0.0424,94298.0,94297.0,0.2120279]
[1745781255175,0.2544257,94298.0,94297.0,0.2120279]
[1745781256285,0.2544257,94298.0,94297.0,0.3320279]
[1745781257286,0.2554257,94298.0,94297.0,0.3320279]
[1745781257788,0.2967257,94298.0,94297.0,0.3320279]
[1745781258389,0.2977257,94298.0,94297.0,0.3320279]
[1745781259892,0.2997257,94298.0,94297.0,0.3330279]
[1745781263695,0.8293857,94298.0,94297.0,0.121]
[1745781264190,0.2120346,94294.0,94293.0,0.16193914]
[1745781264382,0.7916946,94294.0,94293.0,0.16193914]
[1745781264585,0.2120391,94292.0,94291.0,0.06408]
[1745781264784,0.8816991,94292.0,94291.0,0.06408]
[1745781264995,0.2120414,94291.0,94290.0,0.16193914]
[1745781265293,0.9325014,94291.0,94290.0,0.16193914]
[1745781265593,0.9684014,94291.0,94290.0,0.16193914]
[1745781266094,1.0884014,94291.0,94290.0,0.16193914]
[1745781266990,1.0884014,94291.0,94290.0,0.16293914]
[1745781267295,0.9694014,94291.0,94290.0,0.16593914]
[1745781267495,0.9694014,94291.0,94290.0,0.16493914]
[1745781267692,0.9704014,94291.0,94290.0,0.16693914]
[1745781269095,0.9704014,94291.0,94290.0,0.005]
[1745781271998,1.3312014,94291.0,94290.0,0.005]
[1745781303017,0.8015414,94291.0,94290.0,0.005]
[1745781304015,1.3312014,94291.0,94290.0,0.005]
[1745781315320,1.3312014,94291.0,94290.0,0.003]
[1745781315624,1.3312014,94291.0,94290.0,0.005]
[1745781316419,1.3302014,94291.0,94290.0,0.003]
[1745781316626,1.3312014,94291.0,94290.0,0.2170436]
[1745781316828,0.3936,94291.0,94290.0,0.2170436]
[1745781317126,0.3628,94291.0,94290.0,0.3380436]
[1745781317317,0.5748414,94291.0,94290.0,0.3380436]
[1745781317517,0.6066414,94291.0,94290.0,0.3693436]
[1745781318628,0.6056414,94291.0,94290.0,0.3673436]
[1745781318826,0.6066414,94291.0,94290.0,0.3703436]
[1745781319723,0.6056414,94291.0,94290.0,0.3643436]
[1745781319926,0.6066414,94291.0,94290.0,0.3683436]
[1745781320627,0.6066414,94291.0,94290.0,0.3643436]
[1745781323229,0.6076414,94291.0,94290.0,0.3643436]
[1745781326733,0.58278476,94291.0,94290.0,0.3643436]
[1745781327527,0.2468414,94291.0,94290.0,0.3643436]
[1745781331733,0.2797414,94291.0,94290.0,0.3643436]
[1745781336245,0.2797414,94291.0,94290.0,0.3330436]
[1745781342751,0.2797414,94291.0,94290.0,0.3972836]
[1745781348458,0.0677,94291.0,94290.0,0.3972836]
[1745781348758,0.00795,94295.0,94294.0,0.2120346]
[1745781348945,0.2120191,94301.0,94300.0,0.2120212]
[1745781349153,0.2120191,94301.0,94300.0,0.3320212]
[1745781351062,0.2130191,94301.0,94300.0,0.3350212]
[1745781351958,0.001,94301.0,94300.0,0.3350212]
[1745781352260,0.2120177,94302.0,94301.0,0.2120189]
[1745781352459,0.7416777,94302.0,94301.0,0.2120189]
[1745781352658,0.52966,94302.0,94301.0,0.2120189]
[1745781352856,0.3608,94314.0,94301.0,0.106044]
[1745781353046,0.3608,94314.0,94313.0,0.2119919]
[1745781353251,0.3608,94314.0,94313.0,0.2762319]
[1745781353852,0.3608,94314.0,94313.0,0.3084319]
[1745781354260,0.3608,94314.0,94313.0,0.4284319]
[1745781355359,0.3618,94314.0,94313.0,0.4314319]
[1745781355561,0.3628,94314.0,94313.0,0.4344319]
[1745781355751,0.3618,94314.0,94313.0,0.4314319]
[1745781357756,0.3608,94314.0,94313.0,0.4284319]
[1745781362160,0.0317,94317.0,94316.0,0.2119852]
[1745781362359,0.2146205,94323.0,94322.0,0.2119717]
[1745781362553,0.2822705,94323.0,94322.0,0.2119717]
[1745781362753,0.8119305,94323.0,94322.0,0.2119717]
[1745781363465,0.8429305,94323.0,94322.0,0.2119717]
[1745781364066,0.8439305,94323.0,94322.0,0.2159717]
[1745781364254,0.8449305,94323.0,94322.0,0.2189717]
[1745781366569,0.073,94323.0,94322.0,0.2189717]
[1745781367168,0.033,94323.0,94322.0,0.3389717]
[1745781367359,0.002,94323.0,94322.0,0.3980717]
[1745781372772,0.002,94323.0,94322.0,0.3690717]
[1745781372975,0.0325,94323.0,94322.0,0.3690717]
[1745781375861,0.0635,94323.0,94322.0,0.3690717]
[1745781383678,0.0635,94323.0,94322.0,0.4330717]
[1745781383881,0.0635,94323.0,94322.0,0.4029717]
[1745781387471,0.2754695,94323.0,94322.0,0.4029717]
[1745781397997,0.8051295,94323.0,94322.0,0.4029717]
[1745781399290,0.8051295,94323.0,94322.0,0.2829717]
[1745781403388,0.8051295,94323.0,94322.0,0.071]
[1745781403797,0.8051295,94323.0,94322.0,0.2829717]
[1745781406795,0.8051295,94323.0,94322.0,0.071]
[1745781407800,0.8051295,94323.0,94322.0,0.2829717]
[1745781411305,0.8051295,94323.0,94322.0,0.071]
[1745781412802,0.8051295,94323.0,94322.0,0.2829717]
[1745781413302,0.8051295,94323.0,94322.0,0.071]
[1745781413996,0.8051295,94323.0,94322.0,0.247]
[1745781414202,0.8051295,94323.0,94322.0,0.071]
[1745781415904,0.9151295,94323.0,94322.0,0.007]
[1745781416197,0.7416384,94319.0,94318.0,0.05073915]
[1745781416400,0.7416384,94319.0,94295.0,0.3608]
[1745781416401,0.7416564,94311.0,94310.0,0.0887318]
[1745781416594,0.2120167,94302.0,94301.0,0.26999862]
[1745781416794,1.2624767,94302.0,94301.0,0.26999862]
[1745781416996,1.3685207,94302.0,94301.0,0.26999862]
[1745781417196,1.4885207,94302.0,94301.0,0.26999862]
[1745781417899,1.4895207,94302.0,94301.0,0.26999862]
[1745781418500,1.4915207,94302.0,94301.0,0.27099862]
[1745781419007,0.9618607,94302.0,94301.0,0.27099862]
[1745781419307,1.4915207,94302.0,94301.0,0.27099862]
[1745781419807,1.5531207,94302.0,94301.0,0.27099862]
[1745781420008,1.5531207,94302.0,94301.0,0.48301752]
[1745781420508,1.5531207,94302.0,94301.0,0.21460958]
[1745781421407,1.5531207,94302.0,94301.0,0.00259068]
[1745781422609,1.1923207,94302.0,94301.0,0.00259068]
[1745781422809,1.5531207,94302.0,94301.0,0.00259068]
[1745781425110,1.4470767,94302.0,94301.0,0.00259068]
[1745781428927,1.0862767,94302.0,94301.0,0.00259068]
[1745781429122,1.4470767,94302.0,94301.0,0.00259068]
[1745781431013,1.0862767,94302.0,94301.0,0.00259068]
[1745781431214,1.4470767,94302.0,94301.0,0.00259068]
[1745781436134,1.3270767,94302.0,94301.0,0.00259068]
[1745781438842,1.2962767,94302.0,94301.0,0.00259068]
[1745781439140,0.7358167,94302.0,94301.0,0.00259068]
[1745781439725,0.7686167,94302.0,94301.0,0.00259068]
[1745781441122,0.4078167,94302.0,94301.0,0.00259068]
[1745781441326,0.7686167,94302.0,94301.0,0.00259068]
[1745781444329,0.053008,94296.0,94280.0,0.00106066]
[1745781444631,0.053008,94296.0,94288.0,0.0313]
[1745781444632,0.2120459,94289.0,94288.0,0.0313]
[1745781444831,0.8617059,94289.0,94288.0,0.0313]
[1745781445134,0.2120481,94288.0,94287.0,0.00786819]
[1745781445336,0.75486,94288.0,94284.0,0.08521059]
[1745781445535,0.7417149,94285.0,94284.0,0.02117059]
[1745781445839,0.2120616,94282.0,94281.0,0.0312]
[1745781446027,1.2325216,94282.0,94281.0,0.0312]
[1745781446736,1.2325216,94282.0,94281.0,0.05248284]
[1745781446924,1.2345216,94282.0,94281.0,0.05348284]
[1745781447328,1.2365216,94282.0,94281.0,0.05448284]
[1745781447930,1.2365216,94282.0,94281.0,0.08648284]
[1745781448736,1.2335216,94282.0,94281.0,0.08548284]
[1745781449032,1.2345216,94282.0,94281.0,0.09440868]
[1745781449435,1.2335216,94282.0,94281.0,0.09340868]
[1745781449737,1.2345216,94282.0,94281.0,0.09440868]
[1745781451842,1.2335216,94282.0,94281.0,0.09340868]
[1745781452036,1.2345216,94282.0,94281.0,0.09440868]
[1745781461541,1.2345216,94282.0,94281.0,0.12560868]
[1745781477360,0.7048616,94282.0,94281.0,0.12560868]
[1745781478855,0.3440616,94282.0,94281.0,0.12560868]
[1745781479061,0.7048616,94282.0,94281.0,0.12560868]
[1745781480162,0.78599157,94282.0,94281.0,0.12560868]
[1745781490156,0.81789157,94282.0,94281.0,0.12560868]
[1745781496076,0.7367616,94282.0,94281.0,0.12560868]
[1745781496571,0.7682616,94282.0,94281.0,0.12560868]
[1745781499971,0.7367616,94282.0,94281.0,0.12560868]
[1745781500180,0.132,94282.0,94281.0,0.44373658]
[1745781501273,0.132,94282.0,94281.0,0.56373658]
[1745781501779,0.3440616,94282.0,94281.0,0.56373658]
[1745781503079,0.3440616,94282.0,94281.0,0.45767258]
[1745781507276,0.3440616,94282.0,94281.0,0.42647258]
[1745781507479,0.3440616,94282.0,94281.0,0.15120868]
[1745781507480,1.2673216,94282.0,94281.0,0.15120868]
[1745781507681,1.2673216,94282.0,94281.0,0.08395674]
[1745781507975,0.7417306,94278.0,94277.0,9e-08]
[1745781508175,1.2625306,94278.0,94277.0,0.00777287]
[1745781508370,1.61859861,94278.0,94277.0,9e-08]
[1745781508774,1.36859861,94278.0,94277.0,9e-08]
[1745781508971,1.43379861,94278.0,94277.0,9e-08]
[1745781509174,1.55779861,94278.0,94277.0,0.00200009]
[1745781510780,1.55379861,94278.0,94277.0,9e-08]
[1745781510975,1.55879861,94278.0,94277.0,9e-08]
[1745781512878,1.55879861,94278.0,94277.0,0.00797729]
[1745781516176,1.4527306,94278.0,94277.0,0.00797729]
[1745781518672,1.53361449,94278.0,94277.0,0.00797729]
[1745781521880,1.4527306,94278.0,94277.0,0.00797729]
[1745781522281,0.9243706,94278.0,94277.0,0.00797729]
[1745781523087,0.8043706,94278.0,94277.0,0.00797729]
[1745781523682,0.7710706,94278.0,94277.0,0.00797729]
[1745781523881,0.7710706,94278.0,94277.0,0.22005019]
[1745781524085,0.7710706,94278.0,94277.0,0.12797729]
[1745781526286,0.7710706,94278.0,94277.0,0.00797729]
[1745781527092,0.7710706,94278.0,94277.0,0.12797729]
[1745781528094,0.7710706,94278.0,94277.0,0.00797729]
[1745781530307,0.7378706,94278.0,94277.0,0.00797729]
[1745781531107,0.7378706,94278.0,94277.0,0.12797729]
[1745781531304,0.7378706,94278.0,94277.0,0.34005019]
[1745781532095,0.7378706,94278.0,94277.0,0.40255019]
[1745781542402,0.5778706,94278.0,94277.0,0.40255019]
[1745781544912,0.5768706,94278.0,94277.0,0.40355019]
[1745781545212,0.5748706,94278.0,94277.0,0.40355019]
[1745781545606,0.3628,94278.0,94277.0,0.40355019]
[1745781545806,0.3628,94278.0,94277.0,0.46775019]
[1745781546010,0.3638,94278.0,94277.0,0.46775019]
[1745781546610,0.5758706,94278.0,94277.0,0.46775019]
[1745781547411,0.5758706,94278.0,94277.0,0.46675019]
[1745781547810,0.5748706,94278.0,94277.0,0.46675019]
[1745781548013,0.5758706,94278.0,94277.0,0.46675019]
[1745781553720,0.6077706,94278.0,94277.0,0.46675019]
[1745781554818,0.2469706,94278.0,94277.0,0.46675019]
[1745781560717,0.0349,94278.0,94277.0,0.46675019]
[1745781560920,0.003,94278.0,94277.0,0.46675019]
[1745781561219,0.0311,94284.0,94280.0,0.0530163]
[1745781561404,0.2431571,94284.0,94283.0,0.2120594]
[1745781561608,0.0311,94284.0,94283.0,0.2760594]
[1745781562224,0.0321,94284.0,94283.0,0.4574594]
[1745781562521,0.0331,94284.0,94283.0,0.4584594]
[1745781562909,0.0321,94284.0,94283.0,0.4584594]
[1745781563107,0.0331,94284.0,94283.0,0.4584594]
[1745781569213,0.08088389,94294.0,94293.0,0.2120369]